lending/lending_fUSD_20260312
["ID","MTS","AMOUNT","RATE_DAILY","PERIOD"]
[408256517,1773323453168,-153.89,0.00033118,120]
[408256518,1773323453177,-153.89,0.00033118,120]
[408256519,1773323453187,-153.89,0.00033118,120]
[408256520,1773323453197,-153.89,0.00033118,120]
[408256521,1773323453207,-158.0,0.000334,3]
[408256522,1773323453217,-232.72,0.00033454,30]
[408256523,1773323453227,-1219.5599212,0.000335,2]
[408256524,1773323453239,-224.032,0.00033528,2]
[408256525,1773323453251,-1280.0,0.00033528,2]
[408256526,1773323453262,-1213.0,0.00033528,2]
[408256527,1773323453272,-163.0,0.00034,3]
[408256528,1773323453282,-192.05,0.00034,30]
[408256529,1773323453292,-93615.67,0.00034,14]
[408256530,1773323453302,-2000.0,0.00034,2]
[408256531,1773323453312,-12983.2,0.000341,30]
[408256532,1773323453324,-151.0,0.000341,7]
[408256533,1773323453333,-151.0,0.000341,7]
[408256534,1773323453343,-507.0,0.00034182,17]
[408256535,1773323453352,-7021.5,0.000342,7]
[408256536,1773323453361,-304.0,0.000342,2]
[408256537,1773323453370,-995.0,0.000342,2]
[408256538,1773323453380,-311.0,0.000342,2]
[408256539,1773323453389,-203.0,0.000342,2]
[408256540,1773323453399,-1743.10352967,0.0003449,2]
[408256541,1773323453412,-150.0,0.00034696,2]
[408256542,1773323453422,-4356.74,0.000347,2]
[408256543,1773323453432,-1238.4,0.000347,30]
[408256544,1773323453442,-2912.60636965,0.000347,120]
[408256545,1773323453452,-1500.0,0.00034795,2]
[408256546,1773323453462,-93615.67,0.000348,14]
[408256547,1773323453473,-500.0,0.000348,30]
[408256548,1773323453483,-232.72,0.00034896,30]
[408256549,1773323453493,-154.73199496,0.000349,120]
[408256550,1773323453503,-1930.49366144,0.00035,2]
[408256551,1773323453513,-1705.52614027,0.00035,2]
[408256552,1773323453523,-150.0,0.00035,60]
[408256553,1773323453533,-845.59163676,0.00035,2]
[408256554,1773323453542,-12983.2,0.00035,30]
[408256555,1773323453552,-299.0,0.00035,12]
[408256556,1773323453562,-500.0,0.00035,30]
[408256557,1773323453572,-150.0,0.00035,2]
[408256558,1773323453581,-509.27441,0.00035,2]
[408256559,1773323453591,-7021.5,0.000353,7]
[408256560,1773323453601,-152.0,0.0003539,4]
[408256561,1773323453610,-163.0,0.000354,3]
[408256562,1773323453620,-93615.67,0.000356,14]
[408256563,1773323453629,-5660.94755681,0.00035616,30]
[408256564,1773323453638,-184.774242,0.00035616,7]
[408256565,1773323453647,-211.27783718,0.00035764,47]
[408256566,1773323453656,-369.68,0.00035934,30]
[408256567,1773323453668,-792.44242798,0.00036,2]
[408256568,1773323453679,-500.0,0.00036,30]
[408256569,1773323453689,-572.20979601,0.00036174,2]
[408256570,1773323453700,-232.72,0.00036338,30]
[408256571,1773323453709,-150.0,0.0003643,2]
[408256572,1773323453719,-12983.2,0.000365,30]
[408256573,1773323453729,-1277.849,0.00036528,2]
[408256574,1773323453739,-1213.0,0.00036528,2]
[408256575,1773323453749,-250.0,0.00036555,41]
[408256576,1773323453758,-200.0,0.00036619,5]
[408256577,1773323453768,-2139.31,0.0003678,2]
[408256578,1773323453777,-163.0,0.000368,3]
[408256579,1773323453786,-1621.93478792,0.000368,2]
[408256580,1773323453796,-365.0,0.00037,2]
[408256581,1773323453806,-7021.5,0.00037,7]
[408256582,1773323453815,-166.85849807,0.00037,2]
[408256583,1773323453824,-8327.65618606,0.00037,30]
[408256584,1773323453833,-500.0,0.00037,30]
[408256585,1773323453843,-507.0,0.00037045,20]
[408256586,1773323453853,-506.99,0.0003708,90]
[408256587,1773323453862,-4356.74,0.000371,2]
[408256588,1773323453872,-93615.67,0.000371,14]
[408256589,1773323453881,-189.39942,0.000371,7]
[408256590,1773323453891,-154.839094,0.000371,7]
[408256591,1773323453901,-158.0,0.000372,3]
[408256592,1773323453911,-183.10859425,0.000372,120]
[408256593,1773323453920,-183.10859423,0.000372,120]
[408256594,1773323453930,-183.10859423,0.000372,120]
[408256595,1773323453941,-183.10859423,0.000372,120]
[408256596,1773323453950,-2000.0,0.000377,2]
[408256597,1773323453960,-232.72,0.0003778,30]
[408256598,1773323453970,-203.60492314,0.0003788,2]
[408256599,1773323453979,-366.19810141,0.00038046,57]
[408256600,1773323453989,-2000.0,0.00038052,120]
[408256601,1773323453998,-2000.0,0.00038062,120]
[408256602,1773323454008,-2000.0,0.00038072,120]
[408256603,1773323454017,-293.90071374,0.000381,33]
[408256604,1773323454027,-12983.2,0.000381,30]
[408256605,1773323454037,-152.0,0.00038152,5]
[408256606,1773323454046,-163.0,0.000382,3]
[408256607,1773323454056,-150.0,0.00038252,2]
[408256608,1773323454066,-686.30392386,0.00038329,120]
[408256609,1773323454075,-439.93099581,0.00038356,120]
[408256610,1773323454084,-93615.67,0.000384,14]
[408256611,1773323454094,-151.02269771,0.000385,30]
[408256612,1773323454103,-7021.5,0.000386,30]
[408256613,1773323454113,-1038.17886706,0.000387,2]
[408256614,1773323454125,-508.7774185,0.00038865,60]
[408256615,1773323454135,-5000.0,0.00038949,2]
[408256616,1773323454260,-5000.0,0.00038949,2]
[408256617,1773323454271,-232.72,0.00039221,30]
[408256618,1773323454281,-500.0,0.00039356,14]
[408256619,1773323454291,-500.0,0.00039356,14]
[408256620,1773323454300,-500.0,0.00039356,14]
[408256621,1773323454310,-12983.2,0.000394,30]
[408256622,1773323454321,-2552.2551656,0.00039412,2]
[408256623,1773323454330,-93615.67,0.000395,14]
[408256624,1773323454339,-1213.0,0.00039528,2]
[408256625,1773323454348,-163.0,0.000396,3]
[408256626,1773323454358,-150.0,0.00039639,2]
[408256627,1773323454369,-853.30061079,0.00039639,2]
[408256628,1773323454378,-507.0,0.00039909,23]
[408256629,1773323454388,-6347.0,0.0003996,2]
[408256630,1773323454398,-152.0,0.0004,120]
[408256631,1773323454408,-156.0,0.0004,120]
[408256632,1773323454418,-189.38058711,0.0004,60]
[408256633,1773323454428,-9472.82282798,0.0004,30]
[408256634,1773323454437,-466.36895032,0.0004,120]
[408256635,1773323454447,-392.92375124,0.0004,2]
[408256636,1773323454456,-1570.08495554,0.0004,2]
[408256637,1773323454465,-220.68464164,0.0004,2]
[408256638,1773323454475,-962.30438785,0.0004,2]
[408256639,1773323454484,-316.63030644,0.0004,2]
[408256640,1773323454494,-162.58551492,0.0004,2]
[408256641,1773323454504,-200.580199,0.0004,2]
[408256642,1773323454513,-155.1797383,0.0004,30]
[408256643,1773323454523,-178.48,0.0004,120]
[408256644,1773323454532,-1000.0,0.0004,120]
[408256645,1773323454541,-4073.0,0.0004,20]
[408256646,1773323454551,-151.13,0.0004,2]
[408256647,1773323454560,-151.13,0.0004,2]
[408256648,1773323454570,-151.13,0.0004,2]
[408256649,1773323454579,-151.13,0.0004,2]
[408256650,1773323454588,-151.13,0.0004,2]
[408256651,1773323454597,-151.13,0.0004,2]
[408256652,1773323454606,-151.13,0.0004,2]
[408256653,1773323454615,-151.13,0.0004,2]
[408256654,1773323454626,-151.13,0.0004,2]
[408256655,1773323454636,-151.13,0.0004,2]
[408256656,1773323454644,-151.13,0.0004,2]
[408256657,1773323454654,-151.13,0.0004,2]
[408256658,1773323454663,-151.13,0.0004,2]
[408256659,1773323454672,-151.13,0.0004,2]
[408256660,1773323454681,-151.13,0.0004,2]
[408256661,1773323454690,-151.13,0.0004,2]
[408256662,1773323454699,-151.13,0.0004,2]
[408256663,1773323454708,-151.13,0.0004,2]
[408256664,1773323454717,-8414.64582374,0.00040072,78]
[408256665,1773323454727,-4356.74,0.000401,30]
[408256666,1773323454738,-7021.5,0.000401,30]
[408256667,1773323454748,-150.0,0.00040165,2]
[408256668,1773323454757,-500.0,0.00040178,14]
[408256669,1773323454766,-950.26,0.000404,2]
[408256670,1773323454775,-12983.2,0.000404,30]
[408256671,1773323454785,-93615.67,0.000404,14]
[408256672,1773323454794,-239.55139513,0.00040533,7]
[408256673,1773323454803,-232.72,0.00040663,30]
[408256674,1773323454811,-213.1544021,0.00040726,30]
[408256675,1773323454821,-194.22375862,0.000408,60]
[408256676,1773323454830,-152.15730722,0.00040834,7]
[408256677,1773323454839,-1969.31538257,0.000409,2]
[408256678,1773323454848,-152.0,0.00040914,6]
[408256679,1773323454857,-42592.0,0.0004095,60]
[408256680,1773323454867,-300.0,0.0004097,120]
[408256681,1773323454881,-700.0,0.0004097,3]
[408256682,1773323454891,-158.0,0.00041,3]
[408256683,1773323454900,-163.0,0.00041,3]
[408256684,1773323454910,-157.0,0.00041,3]
[408256685,1773323454919,-107371.63154043,0.00041,30]
[408256686,1773323455174,-347.97513576,0.00041,30]
[408256687,1773323455186,-23654.61928547,0.00041,30]
[408256688,1773323455209,-693.27386168,0.00041,30]
[408256689,1773323455791,-756.77100593,0.00018903,2]
[408256690,1773323455803,-655.36256464,0.00018903,2]
[408256691,1773323455825,-5361.31412188,0.00018903,2]
[408256692,1773323456425,-24707.06431792,0.00018903,2]
[408256693,1773323456436,-389.99558866,0.00019877,2]
[408256694,1773323456447,-414.0,0.00021528,2]
[408256695,1773323456457,-387.717,0.00024528,2]
[408256696,1773323456468,-4330.01691271,0.00027397,10]
[408256697,1773323456480,-1698.32308729,0.00027397,10]
[408256698,1773323456490,-3141.83204969,0.00041,30]
[408256699,1773323456505,-10377.50000005,0.00041,30]
[408256700,1773323456516,-1137.765,0.00041,30]
[408256701,1773323456526,-1259.5,0.00041,30]
[408256702,1773323456541,-510.0,0.00041,30]
[408256703,1773323537873,928.46774415,9.4e-05,2]
[408256704,1773323539369,500.0,9.4e-05,2]
[408256705,1773323539864,500.0,9.4e-05,2]
[408256706,1773323540571,535.91288932,9.4e-05,2]
[408256707,1773323549665,649.41967209,9.4e-05,2]
[408256708,1773323554169,500.0,9.4e-05,2]
[408256709,1773323554645,500.0,9.4e-05,2]
[408256713,1773323837814,500.0,9.4e-05,2]
[408256714,1773323848356,500.0,9.4e-05,2]
[408256715,1773323848603,500.0,9.4e-05,2]
[408256716,1773323853198,500.0,9.4e-05,2]
[408256717,1773323879957,189430.87121868,0.00018,120]
[408256726,1773324156992,8000.01,9.5e-05,3]
[408256727,1773324157016,2020.15800257,9.5e-05,3]
[408256728,1773324192831,178.21,0.00011919,2]
[408256729,1773324262227,197.609303,0.00014153,7]
[408256769,1773324438980,500.0,9.4e-05,2]
[408256770,1773324452093,500.0,9.4e-05,2]
[408256776,1773324579272,1237.91,7.35e-05,2]
[408256777,1773324579483,1237.91,7.737e-05,2]
[408256778,1773324579694,1237.91,8.124e-05,2]
[408256779,1773324579920,1237.91,8.511e-05,2]
[408256780,1773324580141,1237.91,8.897e-05,2]
[408256781,1773324580363,1237.91,9.284e-05,2]
[408256782,1773324580611,1237.91,9.671e-05,2]
[408256783,1773324580824,137.030697,0.00010058,2]
[408256784,1773324580848,1100.879303,0.00010058,2]
[408256785,1773324581376,1237.91,0.00010445,2]
[408256786,1773324581611,1237.91,0.00010832,2]
[408256787,1773324581791,1237.91,0.00011219,2]
[408256788,1773324582023,1237.91,0.00011605,2]
[408256789,1773324582552,1237.91,0.00011992,2]
[408256790,1773324582597,1237.91,0.00012379,2]
[408256791,1773324582828,1237.91,0.00012766,2]
[408256792,1773324583062,233.760697,0.00013153,2]
[408256793,1773324583087,1004.149303,0.00013153,2]
[408256794,1773324583374,1237.91,0.0001354,2]
[408256795,1773324583577,1237.91,0.00013926,2]
[408256796,1773324583981,1237.91,0.00014313,2]
[408256801,1773324608016,462.0,7.945e-05,2]
[408256811,1773324631667,-175.31530214,0.00014697,2]
[408256813,1773324631677,-272.0,0.00014697,2]
[408256815,1773324631686,-5000.0,0.00014699,2]
[408256816,1773324631695,-165.88621183,0.000147,2]
[408256817,1773324631714,-1072.02378817,0.000147,2]
[408256818,1773324631724,-250.0,0.00014714,2]
[408256819,1773324631734,-300.0,0.00014731,2]
[408256820,1773324631745,-250.0,0.00014738,2]
[408256821,1773324631766,-276.01366804,0.00014764,2]
[408256822,1773324631780,-300.0,0.00014886,2]
[408256823,1773324631790,-192.263638,0.00014888,7]
[408256824,1773324631799,-463.775822,0.00014888,7]
[408256825,1773324631809,-150.0,0.00014897,2]
[408256826,1773324631819,-300.0,0.00014897,2]
[408256827,1773324631829,-1200.0,0.00014897,2]
[408256828,1773324631838,-500.0,0.00014898,2]
[408256829,1773324631848,-1560.01,0.00014898,2]
[408256830,1773324631858,-1500.0,0.00014898,2]
[408256831,1773324631868,-774.06,0.00014898,2]
[408256832,1773324631878,-2800.24,0.00014898,2]
[408256833,1773324631887,-152.72,0.00014898,2]
[408256834,1773324631897,-200.0,0.00014898,2]
[408256835,1773324631906,-248.57,0.00014898,2]
[408256836,1773324631915,-1884.18,0.00014898,2]
[408256837,1773324631924,-1600.0,0.00014898,2]
[408256838,1773324631934,-1665.23,0.00014898,2]
[408256839,1773324631943,-3378.95989889,0.00014898,2]
[408256840,1773324631955,-3661.26010111,0.00014898,2]
[408256841,1773324631964,-200.0,0.00014898,2]
[408256842,1773324631974,-175.31530213,0.000149,2]
[408256843,1773324631983,-1000.0,0.00015,15]
[408256844,1773324631992,-3674.98,0.00015,2]
[408256845,1773324632002,-1793.77997781,0.00015,2]
[408256846,1773324632014,-318.12002219,0.00015,2]
[408256847,1773324632023,-299.99,0.00015,2]
[408256848,1773324632032,-150.99,0.00015,2]
[408256849,1773324632265,-1564.7667601,0.00015,2]
[408256850,1773324632277,-351.5299975,0.00015,2]
[408256851,1773324632288,-5994.38546448,0.00015,2]
[408256852,1773324632299,-21971.41848418,0.00015,2]
[408256863,1773324637671,-5462.89929374,0.00015,2]
[408256864,1773324637681,-351.17,0.00015,2]
[408256865,1773324637690,-9999.99,0.00015,2]
[408256866,1773324637702,-150.99,0.00015,2]
[408256867,1773324637713,-9999.99,0.00015,2]
[408256868,1773324637722,-9999.99,0.00015,2]
[408256869,1773324637732,-500.0,0.00015,30]
[408256870,1773324637743,-500.0,0.00015,30]
[408256871,1773324637753,-600.80540709,0.00015,30]
[408256872,1773324637762,-989.20351924,0.00015,30]
[408256873,1773324637772,-837.33,0.00015,30]
[408256874,1773324637781,-500.0,0.00015,30]
[408256876,1773324637790,-500.0,0.00015,30]
[408256878,1773324637799,-500.0,0.00015,30]
[408256879,1773324637808,-735.72422197,0.00015288,2]
[408256881,1773324637817,-1422.0,0.00015313,2]
[408256883,1773324637826,-1481.0,0.00015343,2]
[408256884,1773324637836,-150.0,0.00015362,2]
[408256885,1773324637845,-1946.0,0.00015374,2]
[408256887,1773324637854,-1136.12,0.00015375,2]
[408256888,1773324637863,-222.01,0.00015534,3]
[408256889,1773324637872,-500.0,0.00015659,2]
[408256890,1773324637882,-500.0,0.00015659,2]
[408256891,1773324637891,-500.0,0.00015659,2]
[408256892,1773324637902,-500.0,0.00015659,2]
[408256893,1773324637911,-500.0,0.00015659,2]
[408256894,1773324637920,-500.0,0.00015659,2]
[408256895,1773324637929,-500.0,0.00015672,2]
[408256896,1773324637938,-500.0,0.00015759,2]
[408256897,1773324637948,-500.0,0.00015759,2]
[408256898,1773324637957,-500.0,0.00015759,2]
[408256899,1773324637966,-500.0,0.00015759,2]
[408256900,1773324637975,-500.0,0.00015759,2]
[408256901,1773324637985,-500.0,0.00015759,2]
[408256902,1773324637994,-529.55228418,0.00015759,2]
[408256903,1773324638003,-2611.40210928,0.00015881,2]
[408256904,1773324638012,-2000.0,0.0001589,2]
[408256905,1773324638021,-150.0,0.000159,2]
[408256906,1773324638030,-152.72,0.00015963,2]
[408256907,1773324638039,-1000.0,0.00016,16]
[408256908,1773324638048,-200.0,0.0001603,2]
[408256909,1773324638058,-250.0,0.00016167,2]
[408256910,1773324638067,-5000.0,0.00016167,2]
[408256911,1773324638076,-1934.87161411,0.00016194,2]
[408256912,1773324638090,-195.18713969,0.00016194,2]
[408256913,1773324638099,-300.0,0.00016194,2]
[408256914,1773324638108,-1191.04441066,0.000162,5]
[408256916,1773324639723,-703.0,0.000162,5]
[408256917,1773324639883,-3105.95558934,0.000162,5]
[408256918,1773324639893,-364.44,0.00016268,2]
[408256919,1773324639902,-420.0,0.00016294,2]
[408256920,1773324639911,-1680.0,0.00016387,2]
[408256921,1773324639920,-500.0,0.00016596,2]
[408256922,1773324639929,-1600.0,0.00016761,2]
[408256923,1773324639938,-6296.10240211,0.000168,2]
[408256924,1773324639947,-2500.0,0.00016899,2]
[408256925,1773324639956,-1919.0254,0.000169,2]
[408256926,1773324639966,-46497.4904,0.000169,2]
[408256927,1773324639975,-5000.0,0.000169,2]
[408256928,1773324639984,-8471.73005489,0.000169,2]
[408256929,1773324639993,-326.9770263,0.000169,2]
[408256930,1773324640002,-289.0,0.00016956,2]
[408256931,1773324640011,-151.0,0.00016989,2]
[408256932,1773324640020,-151.0,0.00016989,2]
[408256933,1773324640029,-151.0,0.00016989,2]
[408256934,1773324640039,-151.0,0.00016989,2]
[408256935,1773324640048,-151.0,0.00016989,2]
[408256936,1773324640057,-151.0,0.00016989,2]
[408256937,1773324640067,-151.0,0.00016989,2]
[408256938,1773324640076,-151.0,0.00016989,2]
[408256939,1773324640085,-151.0,0.00016989,2]
[408256940,1773324640094,-151.0,0.00016989,2]
[408256941,1773324640104,-151.0,0.00016989,2]
[408256942,1773324640113,-295.80018517,0.00016989,2]
[408256943,1773324640122,-346.62,0.0001699,2]
[408256944,1773324640131,-346.62,0.0001699,2]
[408256945,1773324640141,-346.62,0.0001699,2]
[408256946,1773324640151,-346.62,0.0001699,2]
[408256947,1773324640160,-346.62,0.0001699,2]
[408256948,1773324640169,-351.22,0.00016998,2]
[408256949,1773324640178,-545.96251286,0.00016998,2]
[408256950,1773324640187,-545.96251286,0.00016998,2]
[408256951,1773324640197,-545.96251286,0.00016998,2]
[408256952,1773324640206,-264.92803312,0.00016998,2]
[408256953,1773324640215,-545.96251286,0.00016998,2]
[408256954,1773324640224,-545.96251286,0.00016998,2]
[408256955,1773324640233,-545.96251286,0.00016998,2]
[408256956,1773324640242,-545.96251286,0.00016998,2]
[408256957,1773324640251,-545.96251286,0.00016998,2]
[408256958,1773324640260,-545.96251286,0.00016998,2]
[408256959,1773324640269,-545.96251286,0.00016998,2]
[408256960,1773324640278,-545.96251286,0.00016998,2]
[408256961,1773324640286,-545.96251286,0.00016998,2]
[408256962,1773324640296,-545.96251286,0.00016998,2]
[408256963,1773324640305,-545.96251286,0.00016998,2]
[408256964,1773324640314,-545.96251286,0.00016998,2]
[408256965,1773324640322,-545.96251286,0.00016998,2]
[408256966,1773324640331,-545.96251286,0.00016998,2]
[408256967,1773324640340,-545.96251286,0.00016998,2]
[408256968,1773324640349,-545.96251286,0.00016998,2]
[408256969,1773324640359,-545.96251286,0.00016998,2]
[408256970,1773324640368,-545.96251286,0.00016998,2]
[408256971,1773324640377,-545.96251286,0.00016998,2]
[408256972,1773324640386,-545.96251286,0.00016998,2]
[408256973,1773324640396,-545.96251286,0.00016998,2]
[408256974,1773324640406,-545.96251286,0.00016998,2]
[408256975,1773324640415,-545.96251286,0.00016998,2]
[408256976,1773324640424,-545.96251286,0.00016998,2]
[408256977,1773324640433,-545.96251286,0.00016998,2]
[408256979,1773324640443,-545.96251286,0.00016998,2]
[408256981,1773324640452,-545.96251286,0.00016998,2]
[408256982,1773324640461,-545.96251286,0.00016998,2]
[408256983,1773324640470,-545.96251286,0.00016998,2]
[408256984,1773324640479,-545.96251286,0.00016998,2]
[408256985,1773324640488,-545.96251286,0.00016998,2]
[408256986,1773324640498,-545.96251286,0.00016998,2]
[408256987,1773324640507,-545.96251286,0.00016998,2]
[408256988,1773324640516,-545.96251286,0.00016998,2]
[408256989,1773324640526,-545.96251286,0.00016998,2]
[408256990,1773324640535,-545.96251286,0.00016998,2]
[408256991,1773324640544,-545.96251286,0.00016998,2]
[408256992,1773324640553,-545.96251286,0.00016998,2]
[408256993,1773324640561,-545.96251286,0.00016998,2]
[408256994,1773324640570,-545.96251286,0.00016998,2]
[408256995,1773324640579,-545.96251286,0.00016998,2]
[408256996,1773324640589,-545.96251286,0.00016998,2]
[408256997,1773324640602,-545.96251286,0.00016998,2]
[408256998,1773324640611,-545.96251286,0.00016998,2]
[408256999,1773324640620,-545.96251286,0.00016998,2]
[408257000,1773324640631,-545.96251286,0.00016998,2]
[408257001,1773324640641,-545.96251286,0.00016998,2]
[408257002,1773324640650,-545.96251286,0.00016998,2]
[408257003,1773324640661,-545.96251286,0.00016998,2]
[408257004,1773324640671,-500.0,0.00016999,2]
[408257005,1773324640680,-164.06603464,0.00016999,2]
[408257006,1773324640689,-576.59765905,0.00016999,2]
[408257007,1773324640698,-295.36743377,0.00016999,2]
[408257008,1773324640707,-565.68775105,0.00016999,2]
[408257009,1773324640716,-971161.30251557,0.00017,2]
[408257010,1773324640726,-507.0,0.00017,2]
[408257011,1773324640735,-152.72,0.00017027,2]
[408257012,1773324640744,-166.66,0.00017049,2]
[408257013,1773324640752,-77622.37824573,0.000171,2]
[408257014,1773324640762,-6296.10240207,0.00017144,2]
[408257015,1773324640771,-56568.18735267,0.00017202,2]
[408257016,1773324640780,-6296.10240207,0.00017489,2]
[408257017,1773324640790,-269.74663892,0.00017589,2]
[408257018,1773324640799,-166.66,0.00017612,2]
[408257019,1773324640809,-364.44,0.00017638,2]
[408257020,1773324640980,-1483.42040625,0.00017697,2]
[408257021,1773324640991,-938.08263821,0.00017697,2]
[408257022,1773324641000,-1208.77957433,0.00017697,2]
[408257023,1773324641010,-487.86945979,0.00017697,2]
[408257024,1773324641018,-701.55386682,0.000177,2]
[408257025,1773324641029,-201.0,0.00017835,2]
[408257026,1773324641037,-1007.41782398,0.0001786,2]
[408257027,1773324641047,-178.21,0.00017878,2]
[408257028,1773324641055,-1229.1914403,0.0001789,2]
[408257029,1773324641064,-1077.11010336,0.0001789,2]
[408257030,1773324641074,-20000.0,0.0001799,2]
[408257031,1773324641083,-9734.96444497,0.00018,5]
[408257032,1773324641091,-8554.70109591,0.00018,2]
[408257033,1773324641100,-1198.05149751,0.00018,2]
[408257034,1773324641108,-500.2058558,0.00018,2]
[408257035,1773324641116,-160.0,0.00018,30]
[408257036,1773324641125,-1199.38547935,0.0001802,2]
[408257037,1773324641134,-2351.0,0.00018026,2]
[408257038,1773324641143,-152.72,0.00018091,2]
[408257039,1773324641151,-1787.9883388,0.000181,2]
[408257040,1773324641161,-166.66,0.00018174,2]
[408257041,1773324641170,-3727.57451709,0.0001821,2]
[408257042,1773324641179,-9999.99,0.00018533,2]
[408257043,1773324641187,-9559.23,0.00018533,2]
[408257044,1773324641196,-1600.0,0.00018623,2]
[408257045,1773324641205,-166.66,0.00018737,2]
[408257046,1773324641214,-14070.89965809,0.00019,2]
[408257047,1773324641223,-160.80872489,0.000191,4]
[408257048,1773324641232,-152.72,0.00019155,2]
[408257049,1773324641241,-569.69151072,0.0001919,2]
[408257050,1773324641250,-11427.58865983,0.0001919,2]
[408257051,1773324641259,-328.47473321,0.00019273,2]
[408257052,1773324641268,-500.0,0.00019289,2]
[408257053,1773324641277,-500.0,0.00019289,2]
[408257054,1773324641286,-500.0,0.00019289,2]
[408257055,1773324641295,-500.0,0.00019289,2]
[408257056,1773324641304,-500.0,0.00019289,2]
[408257057,1773324641313,-500.0,0.00019289,2]
[408257058,1773324641322,-507.80320873,0.00019289,2]
[408257059,1773324641331,-500.0,0.00019289,2]
[408257060,1773324641340,-500.0,0.00019289,2]
[408257061,1773324641349,-500.0,0.00019289,2]
[408257062,1773324641358,-500.0,0.00019289,2]
[408257063,1773324641367,-500.0,0.00019289,2]
[408257064,1773324641376,-500.0,0.00019289,2]
[408257065,1773324641385,-51809.25615255,0.0001929,2]
[408257066,1773324641397,-2086.83914292,0.0001929,2]
[408257067,1773324641409,-347.053942,0.0001929,2]
[408257068,1773324641430,-19415.33200003,0.0001929,2]
[408257069,1773324641444,-64673.67286064,0.0001929,2]
[408257070,1773324641455,-1616.64725873,0.0001929,2]
[408257071,1773324641466,-1135.96567531,0.0001929,2]
[408257085,1773324642611,-5555.0991427,0.0001929,2]
[408257086,1773324642623,-1908.95357177,0.0001929,2]
[408257087,1773324642671,-4051.58577808,0.0001929,2]
[408257092,1773324645441,-6296.10240207,0.00017833,2]
[408257093,1773324645451,-2719.21102105,0.0001929,2]
[408257099,1773324645667,-7629.51241606,0.0001929,2]
[408257100,1773324645680,-494.61771879,0.0001929,2]
[408257101,1773324645732,-1027.32164993,0.0001929,2]
[408257102,1773324645745,-651.98542784,0.0001929,2]
[408257108,1773324656319,154.0,0.000109,2]
[408257109,1773324656663,154.0,0.000109,2]
[408257112,1773324737595,833.10189696,9.4e-05,2]
[408257113,1773324738316,500.0,9.4e-05,2]
[408257114,1773324738818,500.0,9.4e-05,2]
[408257115,1773324739289,500.0,9.4e-05,2]
[408257116,1773324739832,500.0,9.4e-05,2]
[408257117,1773324743068,534.01,0.000135,2]
[408257118,1773324796176,166.66,0.00014153,2]
[408257119,1773324965117,41592.88,0.0002,120]
[408257121,1773325038478,500.0,9.4e-05,2]
[408257122,1773325043413,500.0,9.4e-05,2]
[408257123,1773325043608,500.0,9.4e-05,2]
[408257124,1773325096271,237.131164,0.00014295,7]
[408257128,1773325342640,500.0,9.4e-05,2]
[408257129,1773325344951,500.0,9.4e-05,2]
[408257130,1773325345418,973.11746355,9.4e-05,2]
[408257132,1773325483912,4000.0,0.00014321,2]
[408257135,1773325637504,500.0,9.4e-05,2]
[408257136,1773325743703,150.0,0.00014055,2]
[408257140,1773325755900,199.11454617,0.00014351,2]
[408257141,1773325774544,425.67,0.00013982,2]
[408257169,1773325832094,-269.0,0.00014451,2]
[408257170,1773325832104,-393.72173973,0.00014451,2]